Workbook

Sheet Báo cáo Lãi và Lỗ
B1: Báo cáo Lời và Lỗ
D3: GIAI ĐOẠN TRƯỚC | E3: NGÂN SÁCH | F3: GIAI ĐOẠN HIỆN TẠI | H3: GIAI ĐOẠN HIỆN TẠI NHƯ % CỦA BÁN HÀNG | I3: % THAY ĐỔI TỪ GIAI ĐOẠN TRƯỚC | J3: % THAY ĐỔI TỪ NGÂN SÁCH
B4: Doanh thu Bán hàng
B5: Sản phẩm/Dịch vụ 1 | D5: 40 | E5: 50 | F5: 45 | H5: =IFERROR(DoanhthuBánhàng[[#This Row],[Current Period]]/SUBTOTAL(109,DoanhthuBánhàng[Current Period]),0) -> 100.0% | I5: =IFERROR(DoanhthuBánhàng[[#This Row],[Current Period]]/DoanhthuBánhàng[[#This Row],[Prior Period]]-1,0) -> 12.5% | J5: =IFERROR(DoanhthuBánhàng[[#This Row],[Current Period]]/DoanhthuBánhàng[[#This Row],[Budget]]-1,0) -> -10.0%
B6: Sản phẩm/Dịch vụ 2 | H6: =IFERROR(DoanhthuBánhàng[[#This Row],[Current Period]]/SUBTOTAL(109,DoanhthuBánhàng[Current Period]),0) -> 0 | I6: =IFERROR(DoanhthuBánhàng[[#This Row],[Current Period]]/DoanhthuBánhàng[[#This Row],[Prior Period]]-1,0) -> 0 | J6: =IFERROR(DoanhthuBánhàng[[#This Row],[Current Period]]/DoanhthuBánhàng[[#This Row],[Budget]]-1,0) -> 0
B7: Sản phẩm/Dịch vụ 3 | H7: =IFERROR(DoanhthuBánhàng[[#This Row],[Current Period]]/SUBTOTAL(109,DoanhthuBánhàng[Current Period]),0) -> 0 | I7: =IFERROR(DoanhthuBánhàng[[#This Row],[Current Period]]/DoanhthuBánhàng[[#This Row],[Prior Period]]-1,0) -> 0 | J7: =IFERROR(DoanhthuBánhàng[[#This Row],[Current Period]]/DoanhthuBánhàng[[#This Row],[Budget]]-1,0) -> 0
B8: Sản phẩm/Dịch vụ 4 | H8: =IFERROR(DoanhthuBánhàng[[#This Row],[Current Period]]/SUBTOTAL(109,DoanhthuBánhàng[Current Period]),0) -> 0 | I8: =IFERROR(DoanhthuBánhàng[[#This Row],[Current Period]]/DoanhthuBánhàng[[#This Row],[Prior Period]]-1,0) -> 0 | J8: =IFERROR(DoanhthuBánhàng[[#This Row],[Current Period]]/DoanhthuBánhàng[[#This Row],[Budget]]-1,0) -> 0
B9: Tổng | D9: =SUBTOTAL(109,DoanhthuBánhàng[Prior Period]) -> 40 | E9: =SUBTOTAL(109,DoanhthuBánhàng[Budget]) -> 50 | F9: =SUBTOTAL(109,DoanhthuBánhàng[Current Period]) -> 45 | H9: =IFERROR(DoanhthuBánhàng[[#Totals],[Current Period]]/DoanhthuBánhàng[[#Totals],[Current Period]],0) -> 100.0% | I9: =IFERROR(DoanhthuBánhàng[[#Totals],[Current Period]]/DoanhthuBánhàng[[#Totals],[Prior Period]]-1,0) -> 12.5% | J9: =IFERROR(DoanhthuBánhàng[[#Totals],[Current Period]]/DoanhthuBánhàng[[#Totals],[Budget]]-1,0) -> -10.0%
B11: Chi phí Bán hàng
B12: Sản phẩm/Dịch vụ 1 | E12: 2 | F12: 3 | H12: =IFERROR(ChiphíBánhàng[[#This Row],[Current Period]]/SUBTOTAL(109,DoanhthuBánhàng[Current Period]),0) -> 6.7% | I12: =IFERROR(ChiphíBánhàng[[#This Row],[Current Period]]/ChiphíBánhàng[[#This Row],[Prior Period]]-1,0) -> 0 | J12: =IFERROR(ChiphíBánhàng[[#This Row],[Current Period]]/ChiphíBánhàng[[#This Row],[Budget]]-1,0) -> 50.0%
B13: Sản phẩm/Dịch vụ 2 | E13: 5 | F13: 3 | H13: =IFERROR(ChiphíBánhàng[[#This Row],[Current Period]]/SUBTOTAL(109,DoanhthuBánhàng[Current Period]),0) -> 6.7% | I13: =IFERROR(ChiphíBánhàng[[#This Row],[Current Period]]/ChiphíBánhàng[[#This Row],[Prior Period]]-1,0) -> 0 | J13: =IFERROR(ChiphíBánhàng[[#This Row],[Current Period]]/ChiphíBánhàng[[#This Row],[Budget]]-1,0) -> -40.0%
B14: Sản phẩm/Dịch vụ 3 | F14: 1 | H14: =IFERROR(ChiphíBánhàng[[#This Row],[Current Period]]/SUBTOTAL(109,DoanhthuBánhàng[Current Period]),0) -> 2.2% | I14: =IFERROR(ChiphíBánhàng[[#This Row],[Current Period]]/ChiphíBánhàng[[#This Row],[Prior Period]]-1,0) -> 0 | J14: =IFERROR(ChiphíBánhàng[[#This Row],[Current Period]]/ChiphíBánhàng[[#This Row],[Budget]]-1,0) -> 0
B15: Sản phẩm/Dịch vụ 4 | H15: =IFERROR(ChiphíBánhàng[[#This Row],[Current Period]]/SUBTOTAL(109,DoanhthuBánhàng[Current Period]),0) -> 0 | I15: =IFERROR(ChiphíBánhàng[[#This Row],[Current Period]]/ChiphíBánhàng[[#This Row],[Prior Period]]-1,0) -> 0 | J15: =IFERROR(ChiphíBánhàng[[#This Row],[Current Period]]/ChiphíBánhàng[[#This Row],[Budget]]-1,0) -> 0
B16: Tổng | D16: =SUBTOTAL(109,ChiphíBánhàng[Prior Period]) -> 0 | E16: =SUBTOTAL(109,ChiphíBánhàng[Budget]) -> 7 | F16: =SUBTOTAL(109,ChiphíBánhàng[Current Period]) -> 7 | H16: =IFERROR(ChiphíBánhàng[[#Totals],[Current Period]]/SUBTOTAL(109,DoanhthuBánhàng[Current Period]),0) -> 15.6% | I16: =IFERROR(ChiphíBánhàng[[#Totals],[Current Period]]/ChiphíBánhàng[[#Totals],[Prior Period]]-1,0) -> 0 | J16: =IFERROR(ChiphíBánhàng[[#Totals],[Current Period]]/ChiphíBánhàng[[#Totals],[Budget]]-1,0) -> 0
B18: Tổng Lời | D18: =SUM(DoanhthuBánhàng[Prior Period])-SUM(ChiphíBánhàng[Prior Period]) -> 40 | E18: =SUM(DoanhthuBánhàng[Budget])-SUM(ChiphíBánhàng[Budget]) -> 43 | F18: =SUM(DoanhthuBánhàng[Current Period])-SUM(ChiphíBánhàng[Current Period]) -> 38 | H18: =IFERROR(F18/SUBTOTAL(109,DoanhthuBánhàng[Current Period]),0) -> 84.4% | I18: =IFERROR(F18/D18-1,0) -> -5.0% | J18: =IFERROR(F18/E18-1,0) -> -11.6%
B20: Chi phí Hoạt động: Bán hàng và Tiếp thị
B21: Quảng cáo | E21: 22 | F21: 19 | H21: =IFERROR(BánhàngvàTiếpthị[[#This Row],[Current Period]]/SUBTOTAL(109,DoanhthuBánhàng[Current Period]),0) -> 42.2% | I21: =IFERROR(BánhàngvàTiếpthị[[#This Row],[Current Period]]/BánhàngvàTiếpthị[[#This Row],[Prior Period]]-1,0) -> 0 | J21: =IFERROR(BánhàngvàTiếpthị[[#This Row],[Current Period]]/BánhàngvàTiếpthị[[#This Row],[Budget]]-1,0) -> -13.6%
B22: Tiếp thị trực tiếp | H22: =IFERROR(BánhàngvàTiếpthị[[#This Row],[Current Period]]/SUBTOTAL(109,DoanhthuBánhàng[Current Period]),0) -> 0 | I22: =IFERROR(BánhàngvàTiếpthị[[#This Row],[Current Period]]/BánhàngvàTiếpthị[[#This Row],[Prior Period]]-1,0) -> 0 | J22: =IFERROR(BánhàngvàTiếpthị[[#This Row],[Current Period]]/BánhàngvàTiếpthị[[#This Row],[Budget]]-1,0) -> 0
B23: Các chi phí khác (xác định) | H23: =IFERROR(BánhàngvàTiếpthị[[#This Row],[Current Period]]/SUBTOTAL(109,DoanhthuBánhàng[Current Period]),0) -> 0 | I23: =IFERROR(BánhàngvàTiếpthị[[#This Row],[Current Period]]/BánhàngvàTiếpthị[[#This Row],[Prior Period]]-1,0) -> 0 | J23: =IFERROR(BánhàngvàTiếpthị[[#This Row],[Current Period]]/BánhàngvàTiếpthị[[#This Row],[Budget]]-1,0) -> 0
B24: Tổng | D24: =SUBTOTAL(109,BánhàngvàTiếpthị[Prior Period]) -> 0 | E24: =SUBTOTAL(109,BánhàngvàTiếpthị[Budget]) -> 22 | F24: =SUBTOTAL(109,BánhàngvàTiếpthị[Current Period]) -> 19 | H24: =IFERROR(BánhàngvàTiếpthị[[#Totals],[Current Period]]/SUBTOTAL(109,DoanhthuBánhàng[Current Period]),0) -> 42.2% | I24: =IFERROR(BánhàngvàTiếpthị[[#Totals],[Current Period]]/BánhàngvàTiếpthị[[#Totals],[Prior Period]]-1,0) -> 0 | J24: =IFERROR(BánhàngvàTiếpthị[[#Totals],[Current Period]]/BánhàngvàTiếpthị[[#Totals],[Budget]]-1,0) -> -13.6%
B26: Chi phí Hoạt động: Chung và Hành chính
B27: Tiền công và tiền lương | E27: 56 | F27: 51 | H27: =IFERROR(ChungVàHànhchính[[#This Row],[Current Period]]/SUBTOTAL(109,DoanhthuBánhàng[Current Period]),0) -> 113.3% | I27: =IFERROR(ChungVàHànhchính[[#This Row],[Current Period]]/ChungVàHànhchính[[#This Row],[Prior Period]]-1,0) -> 0 | J27: =IFERROR(ChungVàHànhchính[[#This Row],[Current Period]]/ChungVàHànhchính[[#This Row],[Budget]]-1,0) -> -8.9%
B28: Dịch vụ ngoài | H28: =IFERROR(ChungVàHànhchính[[#This Row],[Current Period]]/SUBTOTAL(109,DoanhthuBánhàng[Current Period]),0) -> 0 | I28: =IFERROR(ChungVàHànhchính[[#This Row],[Current Period]]/ChungVàHànhchính[[#This Row],[Prior Period]]-1,0) -> 0 | J28: =IFERROR(ChungVàHànhchính[[#This Row],[Current Period]]/ChungVàHànhchính[[#This Row],[Budget]]-1,0) -> 0
B29: Vật dụng | H29: =IFERROR(ChungVàHànhchính[[#This Row],[Current Period]]/SUBTOTAL(109,DoanhthuBánhàng[Current Period]),0) -> 0 | I29: =IFERROR(ChungVàHànhchính[[#This Row],[Current Period]]/ChungVàHànhchính[[#This Row],[Prior Period]]-1,0) -> 0 | J29: =IFERROR(ChungVàHànhchính[[#This Row],[Current Period]]/ChungVàHànhchính[[#This Row],[Budget]]-1,0) -> 0
B30: Ăn uống và giải trí | H30: =IFERROR(ChungVàHànhchính[[#This Row],[Current Period]]/SUBTOTAL(109,DoanhthuBánhàng[Current Period]),0) -> 0 | I30: =IFERROR(ChungVàHànhchính[[#This Row],[Current Period]]/ChungVàHànhchính[[#This Row],[Prior Period]]-1,0) -> 0 | J30: =IFERROR(ChungVàHànhchính[[#This Row],[Current Period]]/ChungVàHànhchính[[#This Row],[Budget]]-1,0) -> 0
B31: Tiền thuê | H31: =IFERROR(ChungVàHànhchính[[#This Row],[Current Period]]/SUBTOTAL(109,DoanhthuBánhàng[Current Period]),0) -> 0 | I31: =IFERROR(ChungVàHànhchính[[#This Row],[Current Period]]/ChungVàHànhchính[[#This Row],[Prior Period]]-1,0) -> 0 | J31: =IFERROR(ChungVàHànhchính[[#This Row],[Current Period]]/ChungVàHànhchính[[#This Row],[Budget]]-1,0) -> 0
B32: Điện thoại | H32: =IFERROR(ChungVàHànhchính[[#This Row],[Current Period]]/SUBTOTAL(109,DoanhthuBánhàng[Current Period]),0) -> 0 | I32: =IFERROR(ChungVàHànhchính[[#This Row],[Current Period]]/ChungVàHànhchính[[#This Row],[Prior Period]]-1,0) -> 0 | J32: =IFERROR(ChungVàHànhchính[[#This Row],[Current Period]]/ChungVàHànhchính[[#This Row],[Budget]]-1,0) -> 0
B33: Tiện ích | H33: =IFERROR(ChungVàHànhchính[[#This Row],[Current Period]]/SUBTOTAL(109,DoanhthuBánhàng[Current Period]),0) -> 0 | I33: =IFERROR(ChungVàHànhchính[[#This Row],[Current Period]]/ChungVàHànhchính[[#This Row],[Prior Period]]-1,0) -> 0 | J33: =IFERROR(ChungVàHànhchính[[#This Row],[Current Period]]/ChungVàHànhchính[[#This Row],[Budget]]-1,0) -> 0
B34: Khấu hao | H34: =IFERROR(ChungVàHànhchính[[#This Row],[Current Period]]/SUBTOTAL(109,DoanhthuBánhàng[Current Period]),0) -> 0 | I34: =IFERROR(ChungVàHànhchính[[#This Row],[Current Period]]/ChungVàHànhchính[[#This Row],[Prior Period]]-1,0) -> 0 | J34: =IFERROR(ChungVàHànhchính[[#This Row],[Current Period]]/ChungVàHànhchính[[#This Row],[Budget]]-1,0) -> 0
B35: Bảo hiểm | H35: =IFERROR(ChungVàHànhchính[[#This Row],[Current Period]]/SUBTOTAL(109,DoanhthuBánhàng[Current Period]),0) -> 0 | I35: =IFERROR(ChungVàHànhchính[[#This Row],[Current Period]]/ChungVàHànhchính[[#This Row],[Prior Period]]-1,0) -> 0 | J35: =IFERROR(ChungVàHànhchính[[#This Row],[Current Period]]/ChungVàHànhchính[[#This Row],[Budget]]-1,0) -> 0
B36: Sửa chữa và bảo trì | H36: =IFERROR(ChungVàHànhchính[[#This Row],[Current Period]]/SUBTOTAL(109,DoanhthuBánhàng[Current Period]),0) -> 0 | I36: =IFERROR(ChungVàHànhchính[[#This Row],[Current Period]]/ChungVàHànhchính[[#This Row],[Prior Period]]-1,0) -> 0 | J36: =IFERROR(ChungVàHànhchính[[#This Row],[Current Period]]/ChungVàHànhchính[[#This Row],[Budget]]-1,0) -> 0
B37: Các chi phí khác (xác định) | H37: =IFERROR(ChungVàHànhchính[[#This Row],[Current Period]]/SUBTOTAL(109,DoanhthuBánhàng[Current Period]),0) -> 0 | I37: =IFERROR(ChungVàHànhchính[[#This Row],[Current Period]]/ChungVàHànhchính[[#This Row],[Prior Period]]-1,0) -> 0 | J37: =IFERROR(ChungVàHànhchính[[#This Row],[Current Period]]/ChungVàHànhchính[[#This Row],[Budget]]-1,0) -> 0
B38: Tổng | D38: =SUBTOTAL(109,ChungVàHànhchính[Prior Period]) -> 0 | E38: =SUBTOTAL(109,ChungVàHànhchính[Budget]) -> 56 | F38: =SUBTOTAL(109,ChungVàHànhchính[Current Period]) -> 51 | H38: =IFERROR(ChungVàHànhchính[[#Totals],[Current Period]]/SUBTOTAL(109,DoanhthuBánhàng[Current Period]),0) -> 113.3% | I38: =IFERROR(ChungVàHànhchính[[#Totals],[Current Period]]/ChungVàHànhchính[[#Totals],[Prior Period]]-1,0) -> 0 | J38: =IFERROR(ChungVàHànhchính[[#Totals],[Current Period]]/ChungVàHànhchính[[#Totals],[Budget]]-1,0) -> -8.9%
B40: Chi phí Hoạt động: Khác
B41: Chi phí hoạt động khác 1 | E41: 10 | H41: =IFERROR(LoạiChiphíHoạtđộngKhác[[#This Row],[Current Period]]/SUBTOTAL(109,DoanhthuBánhàng[Current Period]),0) -> 0 | I41: =IFERROR(LoạiChiphíHoạtđộngKhác[[#This Row],[Current Period]]/LoạiChiphíHoạtđộngKhác[[#This Row],[Prior Period]]-1,0) -> 0 | J41: =IFERROR(LoạiChiphíHoạtđộngKhác[[#This Row],[Current Period]]/LoạiChiphíHoạtđộngKhác[[#This Row],[Budget]]-1,0) -> -100.0%
B42: Chi phí hoạt động khác 2 | H42: =IFERROR(LoạiChiphíHoạtđộngKhác[[#This Row],[Current Period]]/SUBTOTAL(109,DoanhthuBánhàng[Current Period]),0) -> 0 | I42: =IFERROR(LoạiChiphíHoạtđộngKhác[[#This Row],[Current Period]]/LoạiChiphíHoạtđộngKhác[[#This Row],[Prior Period]]-1,0) -> 0 | J42: =IFERROR(LoạiChiphíHoạtđộngKhác[[#This Row],[Current Period]]/LoạiChiphíHoạtđộngKhác[[#This Row],[Budget]]-1,0) -> 0
B43: Tổng | D43: =SUBTOTAL(109,LoạiChiphíHoạtđộngKhác[Prior Period]) -> 0 | E43: =SUBTOTAL(109,LoạiChiphíHoạtđộngKhác[Budget]) -> 10 | F43: =SUBTOTAL(109,LoạiChiphíHoạtđộngKhác[Current Period]) -> 0 | H43: =IFERROR(LoạiChiphíHoạtđộngKhác[[#Totals],[Current Period]]/SUBTOTAL(109,DoanhthuBánhàng[Current Period]),0) -> 0 | I43: =IFERROR(LoạiChiphíHoạtđộngKhác[[#Totals],[Current Period]]/LoạiChiphíHoạtđộngKhác[[#Totals],[Prior Period]]-1,0) -> 0 | J43: =IFERROR(LoạiChiphíHoạtđộngKhác[[#Totals],[Current Period]]/LoạiChiphíHoạtđộngKhác[[#Totals],[Budget]]-1,0) -> -100.0%
B45: Tổng Chi phí Hoạt động | D45: =SUM(BánhàngvàTiếpthị[Prior Period],ChungVàHànhchính[Prior Period],LoạiChiphíHoạtđộngKhác[Prior Period]) -> 0 | E45: =SUM(BánhàngvàTiếpthị[Budget],ChungVàHànhchính[Budget],LoạiChiphíHoạtđộngKhác[Budget]) -> 88 | F45: =SUM(BánhàngvàTiếpthị[Current Period],ChungVàHànhchính[Current Period],LoạiChiphíHoạtđộngKhác[Current Period]) -> 70 | H45: =IFERROR(F45/SUBTOTAL(109,DoanhthuBánhàng[Current Period]),0) -> 155.6% | I45: =IFERROR(F45/D45-1,0) -> 0 | J45: =IFERROR(F45/E45-1,0) -> -20.5%
B47: Thu nhập từ Hoạt động | D47: =D18-D45 -> 40 | E47: =E18-E45 -> -45 | F47: =F18-F45 -> -32 | H47: =IFERROR(F47/SUBTOTAL(109,DoanhthuBánhàng[Current Period]),0) -> -71.1% | I47: =IFERROR(IF(D47=F47,0,IF(F47>D47,ABS((F47/D47)-1),IF(AND(F47<D47,D47<0),-((F47/D47)-1),(F47/D47)-1))),0) -> -180.0% | J47: =IFERROR(IF(E47=F47,0,IF(F47>E47,ABS((F47/E47)-1),IF(AND(F47<E47,E47<0),-((F47/E47)-1),(F47/E47)-1))),0) -> 28.9%
B49: Thu nhập Khác | H49: =IFERROR(F49/SUBTOTAL(109,DoanhthuBánhàng[Current Period]),0) -> 0 | I49: =IFERROR(F49/D49-1,0) -> 0 | J49: =IFERROR(F49/E49-1,0) -> 0
B51: Thuế
B52: Thuế thu nhập | E52: 32 | F52: 30 | H52: =IFERROR(Thuế[[#This Row],[Current Period]]/SUBTOTAL(109,DoanhthuBánhàng[Current Period]),0) -> 66.7% | I52: =IFERROR(Thuế[[#This Row],[Current Period]]/Thuế[[#This Row],[Prior Period]]-1,0) -> 0 | J52: =IFERROR(Thuế[[#This Row],[Current Period]]/Thuế[[#This Row],[Budget]]-1,0) -> -6.3%
B53: Thuế tiền lương | H53: =IFERROR(Thuế[[#This Row],[Current Period]]/SUBTOTAL(109,DoanhthuBánhàng[Current Period]),0) -> 0 | I53: =IFERROR(Thuế[[#This Row],[Current Period]]/Thuế[[#This Row],[Prior Period]]-1,0) -> 0 | J53: =IFERROR(Thuế[[#This Row],[Current Period]]/Thuế[[#This Row],[Budget]]-1,0) -> 0
B54: Thuế bất động sản | H54: =IFERROR(Thuế[[#This Row],[Current Period]]/SUBTOTAL(109,DoanhthuBánhàng[Current Period]),0) -> 0 | I54: =IFERROR(Thuế[[#This Row],[Current Period]]/Thuế[[#This Row],[Prior Period]]-1,0) -> 0 | J54: =IFERROR(Thuế[[#This Row],[Current Period]]/Thuế[[#This Row],[Budget]]-1,0) -> 0
B55: Thuế khác (xác định) | H55: =IFERROR(Thuế[[#This Row],[Current Period]]/SUBTOTAL(109,DoanhthuBánhàng[Current Period]),0) -> 0 | I55: =IFERROR(Thuế[[#This Row],[Current Period]]/Thuế[[#This Row],[Prior Period]]-1,0) -> 0 | J55: =IFERROR(Thuế[[#This Row],[Current Period]]/Thuế[[#This Row],[Budget]]-1,0) -> 0
B56: Tổng | D56: =SUBTOTAL(109,Thuế[Prior Period]) -> 0 | E56: =SUBTOTAL(109,Thuế[Budget]) -> 32 | F56: =SUBTOTAL(109,Thuế[Current Period]) -> 30 | H56: =IFERROR(Thuế[[#Totals],[Current Period]]/SUBTOTAL(109,DoanhthuBánhàng[Current Period]),0) -> 66.7% | I56: =IFERROR(Thuế[[#Totals],[Current Period]]/Thuế[[#Totals],[Prior Period]]-1,0) -> 0 | J56: =IFERROR(Thuế[[#Totals],[Current Period]]/Thuế[[#Totals],[Budget]]-1,0) -> -6.3%
B58: Lãi ròng | D58: =D47+D49-Thuế[[#Totals],[Prior Period]] -> 40 | E58: =E47+E49-Thuế[[#Totals],[Prior Period]] -> -45 | F58: =F47+F49-Thuế[[#Totals],[Prior Period]] -> -32 | H58: =IFERROR(F58/SUBTOTAL(109,DoanhthuBánhàng[Current Period]),0) -> -71.1% | I58: =IFERROR(IF(D58=F58,0,IF(F58>D58,ABS((F58/D58)-1),IF(AND(F58<D58,D58<0),-((F58/D58)-1),(F58/D58)-1))),0) -> -180.0% | J58: =IFERROR(IF(E58=F58,0,IF(F58>E58,ABS((F58/E58)-1),IF(AND(F58<E58,E58<0),-((F58/E58)-1),(F58/E58)-1))),0) -> 28.9%
B59: Tổng lợi nhuận bán hàng | D59: =D18/SUM(DoanhthuBánhàng[Prior Period]) -> 100.0% | E59: =E18/SUM(DoanhthuBánhàng[Budget]) -> 86.0% | F59: =F18/SUM(DoanhthuBánhàng[Current Period]) -> 84.4%
B60: Lợi nhuận từ doanh thu | D60: =D58/SUM(DoanhthuBánhàng[Prior Period]) -> 100.0% | E60: =E58/SUM(DoanhthuBánhàng[Budget]) -> -90.0% | F60: =F58/SUM(DoanhthuBánhàng[Current Period]) -> -71.1%
